[Event "Late-Titled-Tuesday-Blitz-October-17-2023"]
[Site "Chess.com"]
[Date "2023.10.17"]
[Round "2"]
[White "Mikhal867"]
[Black "AlexNovitz"]
[Result "0-1"]
[WhiteElo "2442"]
[BlackElo "2217"]
[TimeControl "180+1"]
[EndTime "14:18:18 PDT"]
[Termination "AlexNovitz won by checkmate"]

1. d4 {[%clk 0:02:52.7]} 1... Nf6 {[%clk 0:02:59.3]} 2. g3 {[%clk 0:02:51.6]}
2... d5 {[%clk 0:02:58.7]} 3. Bg2 {[%clk 0:02:51.4]} 3... Bf5 {[%clk 0:02:57.7]}
4. Nf3 {[%clk 0:02:51.5]} 4... e6 {[%clk 0:02:56.7]} 5. O-O {[%clk 0:02:51.9]}
5... Be7 {[%clk 0:02:55.9]} 6. Nh4 {[%clk 0:02:49.3]} 6... Bg6 {[%clk
0:02:54.1]} 7. Nxg6 {[%clk 0:02:48.5]} 7... hxg6 {[%clk 0:02:55]} 8. c4 {[%clk
0:02:48.3]} 8... c6 {[%clk 0:02:54.8]} 9. Nc3 {[%clk 0:02:47.6]} 9... O-O {[%clk
0:02:53.3]} 10. e4 {[%clk 0:02:38.1]} 10... dxe4 {[%clk 0:02:54.2]} 11. Nxe4
{[%clk 0:02:37.3]} 11... Nxe4 {[%clk 0:02:52.9]} 12. Bxe4 {[%clk 0:02:37.4]}
12... Nd7 {[%clk 0:02:53.6]} 13. h4 {[%clk 0:02:34.3]} 13... Nf6 {[%clk
0:02:52.3]} 14. Bc2 {[%clk 0:02:31.1]} 14... c5 {[%clk 0:02:47.9]} 15. Be3
{[%clk 0:02:29.6]} 15... Rc8 {[%clk 0:02:44.1]} 16. b3 {[%clk 0:02:00.3]} 16...
Qb6 {[%clk 0:02:35.7]} 17. Bg5 {[%clk 0:01:52.8]} 17... Rfd8 {[%clk 0:02:31.3]}
18. h5 {[%clk 0:01:42]} 18... gxh5 {[%clk 0:02:22.1]} 19. Bxf6 {[%clk
0:01:38.9]} 19... Bxf6 {[%clk 0:02:21.9]} 20. Qxh5 {[%clk 0:01:38.8]} 20... g6
{[%clk 0:02:20.9]} 21. Qf3 {[%clk 0:01:11.8]} 21... Bxd4 {[%clk 0:02:03.4]} 22.
Rad1 {[%clk 0:01:11]} 22... Kg7 {[%clk 0:02:00.4]} 23. Kg2 {[%clk 0:01:09.8]}
23... Qc6 {[%clk 0:01:58.2]} 24. Be4 {[%clk 0:01:08.9]} 24... Qd6 {[%clk
0:01:51.6]} 25. Bxb7 {[%clk 0:01:08.5]} 25... Rc7 {[%clk 0:01:50.7]} 26. Be4
{[%clk 0:01:08.3]} 26... f5 {[%clk 0:01:49.1]} 27. Bc2 {[%clk 0:01:06.7]} 27...
Rh8 {[%clk 0:01:45]} 28. Rh1 {[%clk 0:01:06]} 28... Rxh1 {[%clk 0:01:35.1]} 29.
Rxh1 {[%clk 0:01:04.8]} 29... Qc6 {[%clk 0:01:35.8]} 30. Qxc6 {[%clk 0:00:57.5]}
30... Rxc6 {[%clk 0:01:36.1]} 31. g4 {[%clk 0:00:47.2]} 31... Rc8 {[%clk
0:01:29.4]} 32. Re1 {[%clk 0:00:44.7]} 32... Kf6 {[%clk 0:01:24.4]} 33. gxf5
{[%clk 0:00:36.4]} 33... exf5 {[%clk 0:01:19.4]} 34. Kf3 {[%clk 0:00:35.8]}
34... Rc7 {[%clk 0:01:11.7]} 35. Re8 {[%clk 0:00:34.7]} 35... Re7 {[%clk
0:01:09.5]} 36. Rf8+ {[%clk 0:00:34.5]} 36... Kg7 {[%clk 0:01:09.6]} 37. Rd8
{[%clk 0:00:34.3]} 37... Kf6 {[%clk 0:01:06]} 38. b4 {[%clk 0:00:33.9]} 38...
Rb7 {[%clk 0:01:01.1]} 39. b5 {[%clk 0:00:33.9]} 39... Rf7 {[%clk 0:00:52.3]}
40. a4 {[%clk 0:00:33.3]} 40... g5 {[%clk 0:00:51.8]} 41. a5 {[%clk 0:00:32.6]}
41... g4+ {[%clk 0:00:51.5]} 42. Kg2 {[%clk 0:00:32.5]} 42... f4 {[%clk
0:00:50.4]} 43. Be4 {[%clk 0:00:26.2]} 43... Re7 {[%clk 0:00:47.9]} 44. Bd5
{[%clk 0:00:26.5]} 44... Re2 {[%clk 0:00:45.4]} 45. Rf8+ {[%clk 0:00:21.1]}
45... Kg5 {[%clk 0:00:42.8]} 46. Rg8+ {[%clk 0:00:21.2]} 46... Kf5 {[%clk
0:00:33.9]} 47. Rf8+ {[%clk 0:00:15.5]} 47... Kg5 {[%clk 0:00:34]} 48. Rg8+
{[%clk 0:00:15.6]} 48... Kf5 {[%clk 0:00:27.7]} 49. Kf1 {[%clk 0:00:15.1]} 49...
Rxf2+ {[%clk 0:00:27.2]} 50. Ke1 {[%clk 0:00:15.5]} 50... Rb2 {[%clk 0:00:21.5]}
51. b6 {[%clk 0:00:15]} 51... axb6 {[%clk 0:00:20.9]} 52. a6 {[%clk 0:00:15.2]}
52... Ra2 {[%clk 0:00:19.4]} 53. Ra8 {[%clk 0:00:13.1]} 53... f3 {[%clk
0:00:15.5]} 54. a7 {[%clk 0:00:10.1]} 54... f2+ {[%clk 0:00:15.3]} 55. Kf1
{[%clk 0:00:10]} 55... Ra1+ {[%clk 0:00:15.8]} 56. Ke2 {[%clk 0:00:08.3]} 56...
f1=Q+ {[%clk 0:00:15.9]} 57. Kd2 {[%clk 0:00:08.6]} 57... Qf2+ {[%clk
0:00:15.1]} 58. Kd3 {[%clk 0:00:08.5]} 58... Qe3+ {[%clk 0:00:15.4]} 59. Kc2
{[%clk 0:00:08.4]} 59... Qc3# {[%clk 0:00:15.4]} 0-1

[Event "Late-Titled-Tuesday-Blitz-October-17-2023"]
[Site "Chess.com"]
[Date "2023.10.17"]
[Round "2"]
[White "FrankDux44"]
[Black "campochess"]
[Result "1-0"]
[WhiteElo "2656"]
[BlackElo "2187"]
[TimeControl "180+1"]
[EndTime "14:18:24 PDT"]
[Termination "FrankDux44 won by resignation"]

1. d4 {[%clk 0:03:00.9]} 1... Nf6 {[%clk 0:02:58.3]} 2. c4 {[%clk 0:02:56]} 2...
g6 {[%clk 0:02:57.8]} 3. Nc3 {[%clk 0:02:55.3]} 3... d5 {[%clk 0:02:58]} 4. cxd5
{[%clk 0:02:54.1]} 4... Nxd5 {[%clk 0:02:57.9]} 5. Bd2 {[%clk 0:02:54.7]} 5...
Nxc3 {[%clk 0:02:53.3]} 6. Bxc3 {[%clk 0:02:54.3]} 6... Bg7 {[%clk 0:02:53.4]}
7. h4 {[%clk 0:02:51.8]} 7... h6 {[%clk 0:02:52.2]} 8. Nf3 {[%clk 0:02:40]} 8...
c6 {[%clk 0:02:48.9]} 9. e3 {[%clk 0:02:30.9]} 9... Nd7 {[%clk 0:02:48.1]} 10.
Bc4 {[%clk 0:02:29.9]} 10... Nf6 {[%clk 0:02:46.8]} 11. Ne5 {[%clk 0:02:27.1]}
11... Nd5 {[%clk 0:02:44]} 12. Qf3 {[%clk 0:02:23.8]} 12... Bxe5 {[%clk
0:02:41.4]} 13. dxe5 {[%clk 0:02:23.3]} 13... Be6 {[%clk 0:02:34.7]} 14. e4
{[%clk 0:02:09.4]} 14... Nc7 {[%clk 0:02:31.7]} 15. Rd1 {[%clk 0:02:03.5]} 15...
Qc8 {[%clk 0:02:30.7]} 16. Bxe6 {[%clk 0:01:58.7]} 16... Qxe6 {[%clk 0:02:29.7]}
17. b3 {[%clk 0:01:55.9]} 17... O-O {[%clk 0:02:14.3]} 18. h5 {[%clk 0:01:55.6]}
18... g5 {[%clk 0:02:13.4]} 19. Qf5 {[%clk 0:01:52]} 19... Rad8 {[%clk
0:02:09.7]} 20. O-O {[%clk 0:01:48.4]} 20... b6 {[%clk 0:01:59.5]} 21. g3 {[%clk
0:01:45.5]} 21... Qxf5 {[%clk 0:01:47]} 22. exf5 {[%clk 0:01:45.4]} 22... e6
{[%clk 0:01:47]} 23. Rd6 {[%clk 0:01:23.2]} 23... c5 {[%clk 0:01:41.2]} 24. fxe6
{[%clk 0:01:09.1]} 24... Nxe6 {[%clk 0:01:40.2]} 25. Rfd1 {[%clk 0:01:06.6]}
25... Rfe8 {[%clk 0:01:28]} 26. f4 {[%clk 0:01:02.5]} 26... gxf4 {[%clk
0:01:26.6]} 27. gxf4 {[%clk 0:01:02.4]} 27... Rxd6 {[%clk 0:01:09.8]} 28. exd6
{[%clk 0:01:01.8]} 28... Nf8 {[%clk 0:01:04.2]} 29. Bf6 {[%clk 0:00:55.6]} 29...
Nd7 {[%clk 0:01:00.5]} 30. Be7 {[%clk 0:00:55.9]} 30... f6 {[%clk 0:00:59.1]}
31. a3 {[%clk 0:00:47.9]} 31... Kf7 {[%clk 0:00:58.4]} 32. b4 {[%clk 0:00:48.4]}
32... Rc8 {[%clk 0:00:56.6]} 33. bxc5 {[%clk 0:00:46.2]} 33... Rxc5 {[%clk
0:00:56.2]} 34. Kf2 {[%clk 0:00:46.2]} 34... Rxh5 {[%clk 0:00:55.8]} 35. Kf3
{[%clk 0:00:45.1]} 35... Rc5 {[%clk 0:00:54.3]} 36. Kg4 {[%clk 0:00:43.9]} 36...
b5 {[%clk 0:00:47.2]} 37. Rh1 {[%clk 0:00:41.9]} 37... h5+ {[%clk 0:00:44.8]}
38. Kf3 {[%clk 0:00:39.6]} 38... a5 {[%clk 0:00:42.1]} 39. Ke4 {[%clk
0:00:39.9]} 39... b4 {[%clk 0:00:41.7]} 40. axb4 {[%clk 0:00:39.6]} 40... axb4
{[%clk 0:00:41.3]} 41. Rb1 {[%clk 0:00:40.3]} 41... Rb5 {[%clk 0:00:41]} 42. Kd4
{[%clk 0:00:40.7]} 42... Ke6 {[%clk 0:00:37.9]} 43. Kc4 {[%clk 0:00:40.3]} 43...
Rf5 {[%clk 0:00:37]} 44. Re1+ {[%clk 0:00:38.5]} 44... Kf7 {[%clk 0:00:36]} 45.
Bd8 {[%clk 0:00:38.4]} 45... Rxf4+ {[%clk 0:00:35.5]} 46. Kd5 {[%clk 0:00:38.8]}
46... Rf5+ {[%clk 0:00:34.6]} 47. Kc6 {[%clk 0:00:37.5]} 47... Ne5+ {[%clk
0:00:33.9]} 48. Kc7 {[%clk 0:00:37.8]} 48... Rf3 {[%clk 0:00:28.7]} 49. Kc8
{[%clk 0:00:33.1]} 49... Rd3 {[%clk 0:00:25.6]} 50. Bc7 {[%clk 0:00:32.9]} 50...
b3 {[%clk 0:00:24.2]} 51. Rh1 {[%clk 0:00:24.9]} 51... Kg6 {[%clk 0:00:22.3]}
52. Rg1+ {[%clk 0:00:24.2]} 52... Kf5 {[%clk 0:00:22.1]} 53. Rf1+ {[%clk
0:00:24.3]} 53... Kg5 {[%clk 0:00:19.2]} 54. Rg1+ {[%clk 0:00:24]} 54... Kf4
{[%clk 0:00:18.9]} 55. Rf1+ {[%clk 0:00:24.3]} 55... Rf3 {[%clk 0:00:18.6]} 56.
d7 {[%clk 0:00:21.2]} 56... Rxf1 {[%clk 0:00:17.5]} 57. d8=Q {[%clk 0:00:21.2]}
57... b2 {[%clk 0:00:14]} 58. Qxf6+ {[%clk 0:00:20.9]} 58... Kg4 {[%clk
0:00:11.8]} 59. Qxf1 {[%clk 0:00:20.8]} 59... Nf3 {[%clk 0:00:05.6]} 60. Qg2+
{[%clk 0:00:16.9]} 1-0

[Event "Late-Titled-Tuesday-Blitz-October-17-2023"]
[Site "Chess.com"]
[Date "2023.10.17"]
[Round "2"]
[White "szachmistrz2500"]
[Black "stefan_95"]
[Result "0-1"]
[WhiteElo "2416"]
[BlackElo "2728"]
[TimeControl "180+1"]
[EndTime "14:18:29 PDT"]
[Termination "stefan_95 won on time"]

1. Nf3 {[%clk 0:02:56.1]} 1... Nf6 {[%clk 0:02:59.7]} 2. g3 {[%clk 0:02:56.2]}
2... e6 {[%clk 0:03:00]} 3. Bg2 {[%clk 0:02:55.9]} 3... d5 {[%clk 0:03:00.9]} 4.
d3 {[%clk 0:02:55.8]} 4... Be7 {[%clk 0:03:01.4]} 5. O-O {[%clk 0:02:56]} 5...
O-O {[%clk 0:03:01.7]} 6. Nbd2 {[%clk 0:02:56.7]} 6... d4 {[%clk 0:03:00.9]} 7.
c4 {[%clk 0:02:41.7]} 7... Nc6 {[%clk 0:02:58.8]} 8. a3 {[%clk 0:02:38]} 8... a5
{[%clk 0:02:58.4]} 9. Qc2 {[%clk 0:02:30.3]} 9... e5 {[%clk 0:02:57.9]} 10. e4
{[%clk 0:02:29.8]} 10... Nd7 {[%clk 0:02:57.5]} 11. Rb1 {[%clk 0:02:25]} 11...
a4 {[%clk 0:02:54]} 12. b4 {[%clk 0:02:22.4]} 12... axb3 {[%clk 0:02:54]} 13.
Rxb3 {[%clk 0:02:18.5]} 13... Nc5 {[%clk 0:02:53.5]} 14. Rb1 {[%clk 0:02:18.7]}
14... f5 {[%clk 0:02:51.9]} 15. exf5 {[%clk 0:02:01.1]} 15... Bxf5 {[%clk
0:02:51.1]} 16. Ne1 {[%clk 0:02:01.3]} 16... Qe8 {[%clk 0:02:27.8]} 17. f3
{[%clk 0:02:00.3]} 17... Qg6 {[%clk 0:02:23.9]} 18. Ne4 {[%clk 0:01:59.9]} 18...
Bxe4 {[%clk 0:02:23]} 19. fxe4 {[%clk 0:01:56.8]} 19... Rxf1+ {[%clk 0:02:22.5]}
20. Kxf1 {[%clk 0:01:55.6]} 20... Rf8+ {[%clk 0:02:20.4]} 21. Kg1 {[%clk
0:01:53.7]} 21... Bg5 {[%clk 0:02:19.7]} 22. Bd2 {[%clk 0:01:12.9]} 22... Qh6
{[%clk 0:02:13.2]} 23. Bb4 {[%clk 0:00:58.3]} 23... Be3+ {[%clk 0:02:09.3]} 24.
Kh1 {[%clk 0:00:58.5]} 24... Rf2 {[%clk 0:01:51]} 25. Qd1 {[%clk 0:00:58.5]}
25... Ne6 {[%clk 0:01:39.8]} 26. Nf3 {[%clk 0:00:56.3]} 26... Qg6 {[%clk
0:01:24.4]} 27. Be1 {[%clk 0:00:49.5]} 27... Ra2 {[%clk 0:01:14.3]} 28. Ra1
{[%clk 0:00:45.8]} 28... Rxa1 {[%clk 0:00:51.6]} 29. Qxa1 {[%clk 0:00:46.7]}
29... Nc5 {[%clk 0:00:51.8]} 30. Qd1 {[%clk 0:00:43.6]} 30... Qe8 {[%clk
0:00:42.1]} 31. Bb4 {[%clk 0:00:43.5]} 31... Na6 {[%clk 0:00:28.1]} 32. Be1
{[%clk 0:00:35.4]} 32... Qe7 {[%clk 0:00:28.1]} 33. Qa4 {[%clk 0:00:30.4]} 33...
Nc5 {[%clk 0:00:28.1]} 34. Qa8+ {[%clk 0:00:30.4]} 34... Kf7 {[%clk 0:00:28]}
35. Bf1 {[%clk 0:00:29]} 35... Qf6 {[%clk 0:00:19.7]} 36. Kg2 {[%clk 0:00:27.6]}
36... g5 {[%clk 0:00:19.1]} 37. Qc8 {[%clk 0:00:20.5]} 37... Qe7 {[%clk
0:00:15.3]} 38. Be2 {[%clk 0:00:17.4]} 38... Kg7 {[%clk 0:00:14.8]} 39. Qf5
{[%clk 0:00:13.1]} 39... Qf6 {[%clk 0:00:12.9]} 40. Qc8 {[%clk 0:00:11.4]} 40...
Qf7 {[%clk 0:00:10.8]} 41. h3 {[%clk 0:00:08.6]} 41... h5 {[%clk 0:00:10.8]} 42.
Qf5 {[%clk 0:00:06.9]} 42... Qxf5 {[%clk 0:00:10.5]} 43. exf5 {[%clk 0:00:07.4]}
43... Kf6 {[%clk 0:00:09.2]} 44. g4 {[%clk 0:00:07.7]} 44... hxg4 {[%clk
0:00:09]} 45. hxg4 {[%clk 0:00:08.6]} 45... e4 {[%clk 0:00:08.8]} 46. dxe4
{[%clk 0:00:07]} 46... Nxe4 {[%clk 0:00:09.7]} 47. Bd3 {[%clk 0:00:03.6]} 47...
Nd6 {[%clk 0:00:08.9]} 48. Nd2 {[%clk 0:00:03.1]} 48... Ne5 {[%clk 0:00:08.2]}
49. Ne4+ {[%clk 0:00:02.6]} 49... Nxe4 {[%clk 0:00:08.1]} 50. Bxe4 {[%clk
0:00:03.1]} 50... b6 {[%clk 0:00:07.8]} 51. Bd5 {[%clk 0:00:01.6]} 51... Nxg4
{[%clk 0:00:08]} 52. Kf3 {[%clk 0:00:01.4]} 52... Ne5+ {[%clk 0:00:08.6]} 53.
Ke4 {[%clk 0:00:01.6]} 53... Nf7 {[%clk 0:00:07.5]} 54. Be6 {[%clk 0:00:02.5]}
54... Nd6+ {[%clk 0:00:07.7]} 55. Kd5 {[%clk 0:00:02.4]} 55... Nxf5 {[%clk
0:00:07.9]} 56. Bxf5 {[%clk 0:00:02.6]} 56... Kxf5 {[%clk 0:00:08.2]} 57. Kc6
{[%clk 0:00:03.5]} 57... Bf4 {[%clk 0:00:08.4]} 58. Kd5 {[%clk 0:00:03.2]} 58...
d3 {[%clk 0:00:08.2]} 0-1

[Event "Late-Titled-Tuesday-Blitz-October-17-2023"]
[Site "Chess.com"]
[Date "2023.10.17"]
[Round "2"]
[White "Artem_Koval"]
[Black "MikeSailer"]
[Result "1-0"]
[WhiteElo "2431"]
[BlackElo "2086"]
[TimeControl "180+1"]
[EndTime "14:18:29 PDT"]
[Termination "Artem_Koval won by checkmate"]

1. e4 {[%clk 0:03:00.9]} 1... g6 {[%clk 0:02:59.3]} 2. h4 {[%clk 0:02:59.2]}
2... h5 {[%clk 0:02:59]} 3. Bc4 {[%clk 0:02:55.1]} 3... Bg7 {[%clk 0:02:52.9]}
4. Nf3 {[%clk 0:02:52.1]} 4... c6 {[%clk 0:02:46]} 5. Ng5 {[%clk 0:02:49.2]}
5... d5 {[%clk 0:02:43.8]} 6. Bb3 {[%clk 0:02:44.5]} 6... Bg4 {[%clk 0:02:31.8]}
7. f3 {[%clk 0:02:41.6]} 7... Bc8 {[%clk 0:02:31]} 8. Nc3 {[%clk 0:02:36.4]}
8... Nf6 {[%clk 0:02:11.2]} 9. e5 {[%clk 0:02:29.2]} 9... Ng8 {[%clk 0:02:10.7]}
10. d4 {[%clk 0:02:26.1]} 10... e6 {[%clk 0:02:04.8]} 11. Bf4 {[%clk 0:02:14.2]}
11... Nh6 {[%clk 0:02:00.8]} 12. g4 {[%clk 0:01:59.9]} 12... hxg4 {[%clk
0:01:33.5]} 13. fxg4 {[%clk 0:02:00.8]} 13... Na6 {[%clk 0:01:21.6]} 14. Qf3
{[%clk 0:01:55.2]} 14... Qe7 {[%clk 0:01:16]} 15. h5 {[%clk 0:01:39]} 15... gxh5
{[%clk 0:01:11.7]} 16. Rxh5 {[%clk 0:01:39.9]} 16... Bd7 {[%clk 0:01:07.6]} 17.
O-O-O {[%clk 0:01:39.7]} 17... O-O-O {[%clk 0:01:07.7]} 18. Rdh1 {[%clk
0:01:38.9]} 18... c5 {[%clk 0:01:02.7]} 19. dxc5 {[%clk 0:00:24.8]} 19... Nxc5
{[%clk 0:01:02.4]} 20. Be3 {[%clk 0:00:19]} 20... Nxb3+ {[%clk 0:00:55]} 21.
axb3 {[%clk 0:00:18.4]} 21... Kb8 {[%clk 0:00:53.2]} 22. Bd4 {[%clk 0:00:17]}
22... Rdg8 {[%clk 0:00:41.2]} 23. Kb1 {[%clk 0:00:15.5]} 23... Be8 {[%clk
0:00:41.1]} 24. Qd3 {[%clk 0:00:10.2]} 24... Nxg4 {[%clk 0:00:34.9]} 25. Rxh8
{[%clk 0:00:09.5]} 25... Rxh8 {[%clk 0:00:35.3]} 26. Rxh8 {[%clk 0:00:09.9]}
26... Bxh8 {[%clk 0:00:35.9]} 27. Nf3 {[%clk 0:00:08.6]} 27... f5 {[%clk
0:00:26.7]} 28. exf6 {[%clk 0:00:07.1]} 28... Bxf6 {[%clk 0:00:27]} 29. Bxf6
{[%clk 0:00:04.9]} 29... Qxf6 {[%clk 0:00:25.2]} 30. Nd4 {[%clk 0:00:05.8]}
30... Bg6 {[%clk 0:00:17.7]} 31. Qg3+ {[%clk 0:00:05.2]} 31... Ne5 {[%clk
0:00:14.3]} 32. Nf3 {[%clk 0:00:04.7]} 32... Bxc2+ {[%clk 0:00:07.9]} 33. Kxc2
{[%clk 0:00:03.9]} 33... Qg6+ {[%clk 0:00:08.6]} 34. Qxg6 {[%clk 0:00:03.3]}
34... Nxg6 {[%clk 0:00:09.4]} 35. Nd4 {[%clk 0:00:03.7]} 35... e5 {[%clk
0:00:08.7]} 36. Nf5 {[%clk 0:00:04.2]} 36... d4 {[%clk 0:00:08.6]} 37. Ne4
{[%clk 0:00:04.4]} 37... Kc7 {[%clk 0:00:09.4]} 38. Nc5 {[%clk 0:00:04.5]} 38...
b6 {[%clk 0:00:08.9]} 39. Ne4 {[%clk 0:00:04.9]} 39... Kc6 {[%clk 0:00:09.2]}
40. b4 {[%clk 0:00:05.2]} 40... Kd5 {[%clk 0:00:09.2]} 41. Nf6+ {[%clk
0:00:05.5]} 41... Kc4 {[%clk 0:00:08.9]} 42. b3+ {[%clk 0:00:05.2]} 42... Kxb4
{[%clk 0:00:09.1]} 43. Nd7 {[%clk 0:00:05.8]} 43... e4 {[%clk 0:00:07.7]} 44.
Nxd4 {[%clk 0:00:05.8]} 44... Nf4 {[%clk 0:00:07]} 45. Nc6+ {[%clk 0:00:06.1]}
45... Kb5 {[%clk 0:00:06.7]} 46. Nxa7+ {[%clk 0:00:07]} 46... Ka5 {[%clk
0:00:06.1]} 47. Nc6+ {[%clk 0:00:07.4]} 47... Kb5 {[%clk 0:00:06.2]} 48. Nd4+
{[%clk 0:00:08]} 48... Ka5 {[%clk 0:00:05.6]} 49. Nf6 {[%clk 0:00:08.6]} 49...
Ng6 {[%clk 0:00:04.3]} 50. Nxe4 {[%clk 0:00:08.5]} 50... Ne5 {[%clk 0:00:04.4]}
51. Nd6 {[%clk 0:00:06.7]} 51... Nd7 {[%clk 0:00:04.1]} 52. Nc6+ {[%clk
0:00:05.9]} 52... Ka6 {[%clk 0:00:03.7]} 53. b4 {[%clk 0:00:06]} 53... Nf6
{[%clk 0:00:02.9]} 54. b5# {[%clk 0:00:06.5]} 1-0

[Event "Late-Titled-Tuesday-Blitz-October-17-2023"]
[Site "Chess.com"]
[Date "2023.10.17"]
[Round "2"]
[White "stolencandy13"]
[Black "mind1mover"]
[Result "0-1"]
[WhiteElo "2535"]
[BlackElo "2860"]
[TimeControl "180+1"]
[EndTime "14:18:33 PDT"]
[Termination "mind1mover won by resignation"]

1. d4 {[%clk 0:03:00.9]} 1... Nc6 {[%clk 0:02:57.8]} 2. Bf4 {[%clk 0:03:00.2]}
2... d6 {[%clk 0:02:57.9]} 3. e3 {[%clk 0:02:59.7]} 3... Nf6 {[%clk 0:02:57.6]}
4. Nf3 {[%clk 0:02:59.3]} 4... Nh5 {[%clk 0:02:55.3]} 5. Bg5 {[%clk 0:02:55.4]}
5... h6 {[%clk 0:02:55.7]} 6. Bh4 {[%clk 0:02:55.8]} 6... g5 {[%clk 0:02:56.4]}
7. Bg3 {[%clk 0:02:55.9]} 7... Bg7 {[%clk 0:02:53.2]} 8. c3 {[%clk 0:02:56]}
8... e6 {[%clk 0:02:52.1]} 9. Nbd2 {[%clk 0:02:54.9]} 9... Bd7 {[%clk
0:02:51.3]} 10. Bd3 {[%clk 0:02:48.9]} 10... a6 {[%clk 0:02:42.2]} 11. Qe2
{[%clk 0:02:16.1]} 11... Qe7 {[%clk 0:02:40.5]} 12. O-O-O {[%clk 0:02:14.2]}
12... O-O-O {[%clk 0:02:28.8]} 13. Kb1 {[%clk 0:01:37.5]} 13... Kb8 {[%clk
0:02:28.5]} 14. Nb3 {[%clk 0:01:36.1]} 14... f5 {[%clk 0:02:21.6]} 15. Ne5
{[%clk 0:01:30.6]} 15... dxe5 {[%clk 0:02:12.7]} 16. Qxh5 {[%clk 0:01:28.8]}
16... f4 {[%clk 0:02:13.3]} 17. exf4 {[%clk 0:01:14.2]} 17... exf4 {[%clk
0:02:12.6]} 18. Rhe1 {[%clk 0:01:13.4]} 18... fxg3 {[%clk 0:01:53.3]} 19. fxg3
{[%clk 0:01:13.4]} 19... Bc8 {[%clk 0:01:51.9]} 20. Nc5 {[%clk 0:01:12.5]} 20...
Nxd4 {[%clk 0:01:13.3]} 21. cxd4 {[%clk 0:01:09.5]} 21... Rxd4 {[%clk
0:01:14.2]} 22. Nb3 {[%clk 0:00:45.7]} 22... Rd6 {[%clk 0:01:13.8]} 23. Bc4
{[%clk 0:00:43]} 23... Rhd8 {[%clk 0:01:08.3]} 24. Rxd6 {[%clk 0:00:41.2]} 24...
Rxd6 {[%clk 0:01:08.7]} 25. Qe2 {[%clk 0:00:39.8]} 25... Qf6 {[%clk 0:00:57.5]}
26. Nc5 {[%clk 0:00:34.1]} 26... Qd4 {[%clk 0:00:48.9]} 27. Ne4 {[%clk
0:00:28.5]} 27... Rb6 {[%clk 0:00:46.1]} 28. Bb3 {[%clk 0:00:27.2]} 28... a5
{[%clk 0:00:37.4]} 29. Rd1 {[%clk 0:00:27.3]} 29... Qe5 {[%clk 0:00:37.7]} 30.
Nc3 {[%clk 0:00:17.8]} 30... Qxe2 {[%clk 0:00:31.2]} 31. Nxe2 {[%clk 0:00:18.7]}
31... a4 {[%clk 0:00:32.1]} 32. Bxa4 {[%clk 0:00:19.1]} 32... Rxb2+ {[%clk
0:00:31.2]} 33. Kc1 {[%clk 0:00:19.8]} 33... Rxe2 {[%clk 0:00:24.9]} 34. Rd8
{[%clk 0:00:19.9]} 34... Bf6 {[%clk 0:00:15.7]} 35. Rf8 {[%clk 0:00:18.5]} 35...
Be7 {[%clk 0:00:16]} 36. Re8 {[%clk 0:00:18.5]} 36... Ba3+ {[%clk 0:00:15.9]}
37. Kd1 {[%clk 0:00:18.7]} 37... Re4 {[%clk 0:00:15.9]} 38. Bc2 {[%clk
0:00:16.3]} 38... Rd4+ {[%clk 0:00:16.1]} 39. Ke2 {[%clk 0:00:16.8]} 39... c6
{[%clk 0:00:14.4]} 40. Bb3 {[%clk 0:00:17.2]} 40... Kc7 {[%clk 0:00:14.3]} 41.
Ke3 {[%clk 0:00:17.5]} 41... Bc5 {[%clk 0:00:14.2]} 42. Kf3 {[%clk 0:00:17.9]}
42... h5 {[%clk 0:00:13.8]} 43. Rh8 {[%clk 0:00:18.1]} 43... g4+ {[%clk
0:00:13.7]} 44. Ke2 {[%clk 0:00:18.7]} 44... Re4+ {[%clk 0:00:13.4]} 45. Kd3
{[%clk 0:00:18.6]} 45... Re3+ {[%clk 0:00:13]} 46. Kd2 {[%clk 0:00:19.3]} 46...
Re5 {[%clk 0:00:13.5]} 47. Rh7+ {[%clk 0:00:19.2]} 47... Bd7 {[%clk 0:00:13.5]}
48. h3 {[%clk 0:00:19.7]} 48... Kd6 {[%clk 0:00:13.3]} 49. hxg4 {[%clk
0:00:19.9]} 49... hxg4 {[%clk 0:00:14.2]} 50. Rg7 {[%clk 0:00:19.9]} 50... b5
{[%clk 0:00:12.9]} 51. Rxg4 {[%clk 0:00:19.8]} 51... Bb6 {[%clk 0:00:13.3]} 52.
Rg6 {[%clk 0:00:18.9]} 52... c5 {[%clk 0:00:12.5]} 53. g4 {[%clk 0:00:18.7]}
53... c4 {[%clk 0:00:12.9]} 54. Bc2 {[%clk 0:00:19.4]} 54... Ba5+ {[%clk
0:00:13]} 55. Kc1 {[%clk 0:00:18]} 55... Bc3 {[%clk 0:00:10.3]} 56. g5 {[%clk
0:00:15.1]} 56... Bc6 {[%clk 0:00:08.9]} 57. Rg8 {[%clk 0:00:13.1]} 57... Bxg2
{[%clk 0:00:07.7]} 58. g6 {[%clk 0:00:12.1]} 58... Re1+ {[%clk 0:00:07.9]} 59.
Bd1 {[%clk 0:00:12.5]} 59... Bf3 {[%clk 0:00:08]} 60. Rd8+ {[%clk 0:00:12.7]}
60... Ke7 {[%clk 0:00:07.7]} 61. g7 {[%clk 0:00:13.4]} 61... Bxg7 {[%clk
0:00:07.3]} 62. Rd2 {[%clk 0:00:09.6]} 62... Rxd1+ {[%clk 0:00:07.3]} 63. Rxd1
{[%clk 0:00:09.7]} 63... Bxd1 {[%clk 0:00:08.2]} 64. Kxd1 {[%clk 0:00:10.6]}
64... Kd6 {[%clk 0:00:08.9]} 65. Kc2 {[%clk 0:00:11.5]} 65... Kc5 {[%clk
0:00:09.7]} 66. a4 {[%clk 0:00:11.2]} 66... bxa4 {[%clk 0:00:09.1]} 0-1